bitfinex/quotes_BTCUSD_20250515
["timestamp","ask_amount","ask_price","bid_price","bid_amount"]
[1747338911644,0.01954711,103070.0,103060.0,0.78779953]
[1747338911878,0.01954711,103070.0,103060.0,0.77239953]
[1747338911879,0.02924887,103070.0,103060.0,0.77239953]
[1747338912977,0.01954711,103070.0,103060.0,0.77239953]
[1747338913213,0.02924878,103070.0,103060.0,0.77239953]
[1747338913430,0.24899361,103070.0,103060.0,0.003]
[1747338913638,0.24539065,103070.0,103060.0,0.003]
[1747338913995,0.22959065,103070.0,103060.0,0.55455478]
[1747338914399,0.01954777,103070.0,103060.0,0.5739601]
[1747338914760,0.01954721,103070.0,103060.0,0.58366252]
[1747338914906,0.02924907,103070.0,103060.0,0.58366252]
[1747338915294,0.02924907,103070.0,103060.0,0.5739601]
[1747338915493,0.24799409,103070.0,103060.0,0.5739601]
[1747338915702,0.24799409,103070.0,103060.0,0.56425758]
[1747338915906,0.03895102,103070.0,103060.0,0.5836627]
[1747338916518,0.2329939,103070.0,103060.0,0.56425758]
[1747338916834,0.24419112,103070.0,103060.0,0.003]
[1747338917020,0.44275112,103070.0,103060.0,0.003]
[1747338917837,0.54006052,103070.0,103060.0,0.003]
[1747338921034,0.54006052,103070.0,103060.0,0.004]
[1747338922734,0.53986052,103070.0,103060.0,0.004]
[1747338925763,0.44231112,103070.0,103060.0,0.004]
[1747338925940,0.24419112,103070.0,103060.0,0.004]
[1747338926142,0.44235112,103070.0,103060.0,0.004]
[1747338926557,0.53966052,103070.0,103060.0,0.004]
[1747338930358,0.53946052,103070.0,103060.0,0.004]
[1747338930548,0.42655112,103070.0,103060.0,0.004]
[1747338930754,0.44265112,103070.0,103060.0,0.004]
[1747338931643,0.24469112,103070.0,103060.0,0.004]
[1747338931858,0.44265112,103070.0,103060.0,0.004]
[1747338934068,0.53996052,103070.0,103060.0,0.004]
[1747338936137,0.55450137,103070.0,103060.0,0.004]
[1747338936369,1.52833787,103070.0,103060.0,0.004]
[1747338936785,1.19025077,103070.0,103060.0,0.004]
[1747338937241,1.52833787,103070.0,103060.0,0.004]
[1747338937880,1.19025077,103070.0,103060.0,0.004]
[1747338939078,1.19025077,103070.0,103060.0,0.002]
[1747338939401,1.19225077,103070.0,103060.0,0.002]
[1747338939600,1.19225077,103070.0,103060.0,0.001]
[1747338940013,1.19425077,103070.0,103060.0,0.001]
[1747338941546,0.70054137,103070.0,103060.0,0.001]
[1747338941750,1.09474137,103070.0,103060.0,0.001]
[1747338942959,1.43282847,103070.0,103060.0,0.001]
[1747338949197,1.09474137,103070.0,103060.0,0.001]
[1747338949370,1.43282847,103070.0,103060.0,0.001]
[1747338950166,1.09474137,103070.0,103060.0,0.001]
[1747338951698,1.09402137,103070.0,103060.0,0.001]
[1747338954391,0.88176137,103070.0,103060.0,0.001]
[1747338954602,1.07772137,103070.0,103060.0,0.001]
[1747338955800,1.09412137,103070.0,103060.0,0.001]
[1747338956646,1.52951787,103070.0,103060.0,0.001]
[1747338957063,1.43220847,103070.0,103060.0,0.001]
[1747338957819,1.43220847,103070.0,103060.0,0.00946298]
[1747338959440,1.09412137,103070.0,103060.0,0.00946298]
[1747338959647,1.43220847,103070.0,103060.0,0.00946298]
[1747338960576,1.09404137,103070.0,103060.0,0.00946298]
[1747338960779,1.07764137,103070.0,103060.0,0.00946298]
[1747338960979,1.06264137,103070.0,103060.0,0.00946298]
[1747338961173,1.06264137,103070.0,103060.0,0.02516298]
[1747338961964,0.66944137,103070.0,103060.0,0.02516298]
[1747338962175,0.86520137,103070.0,103060.0,0.02466298]
[1747338962392,0.21759112,103070.0,103060.0,0.37825008]
[1747338962605,0.21759112,103070.0,103060.0,0.04016298]
[1747338963555,0.21759112,103070.0,103060.0,0.59171748]
[1747338963782,0.03324916,103070.0,103060.0,0.6014199]
[1747338964010,0.23699418,103070.0,103060.0,0.6014199]
[1747338964204,0.23699418,103070.0,103060.0,0.59171748]
[1747338964403,0.23699418,103070.0,103060.0,0.60142009]
[1747338964620,0.22729279,103070.0,103060.0,0.59171758]
[1747338964793,0.21759112,103070.0,103060.0,0.58201478]
[1747338965028,0.20588917,103070.0,103060.0,0.04016298]
[1747338965236,0.20588917,103070.0,103060.0,0.37825008]
[1747338965237,0.19618703,103070.0,103060.0,0.37825008]
[1747338965469,0.19618703,103070.0,103060.0,0.38780935]
[1747338965830,0.19418703,103070.0,103060.0,0.38780935]
[1747338968114,0.19418703,103070.0,103060.0,0.59157405]
[1747338968315,0.19418703,103070.0,103060.0,0.60127694]
[1747338968675,0.19418703,103070.0,103060.0,0.61097964]
[1747338968811,0.19418703,103070.0,103060.0,0.60127694]
[1747338969015,0.19418703,103070.0,103060.0,0.59157405]
[1747338969462,0.19418703,103070.0,103060.0,0.60127694]
[1747338969658,0.19418703,103070.0,103060.0,0.61097964]
[1747338970182,0.23299484,103070.0,103060.0,0.61097964]
[1747338970361,0.23299484,103070.0,103060.0,0.60127694]
[1747338970362,0.22329317,103070.0,103060.0,0.60127694]
[1747338971163,0.21359122,103070.0,103060.0,0.38780935]
[1747338971546,0.21359122,103070.0,103060.0,0.59157405]
[1747338972256,0.21359122,103070.0,103060.0,0.60127694]
[1747338972892,0.21359122,103070.0,103060.0,0.61097964]
[1747338973290,0.21359122,103070.0,103060.0,0.62068225]
[1747338973489,0.21359122,103070.0,103060.0,0.61097964]
[1747338974310,0.21359122,103070.0,103060.0,0.62068225]
[1747338974550,0.00984544,103070.0,103060.0,0.63038477]
[1747338974748,0.00984544,103070.0,103060.0,0.6303842]
[1747338974749,0.0292485,103070.0,103060.0,0.6303842]
[1747338975219,0.03895026,103070.0,103060.0,0.6303842]
[1747338975673,0.03895007,103070.0,103060.0,0.8255042]
[1747338975872,0.03895007,103070.0,103060.0,0.8275042]
[1747338976045,0.03894998,103070.0,103060.0,0.8285042]
[1747338976396,0.04865184,103070.0,103060.0,0.8285042]
[1747338976604,0.22329261,103070.0,103060.0,0.21714225]
[1747338976812,0.21359094,103070.0,103060.0,0.21714225]
[1747338977208,0.21359094,103070.0,103060.0,0.03832225]
[1747338978053,0.21359094,103070.0,103060.0,0.02202225]
[1747338980027,0.22959094,103070.0,103060.0,0.02202225]
[1747338981442,0.21359094,103070.0,103060.0,0.02202225]
[1747338982057,0.40867094,103070.0,103060.0,0.36010935]
[1747338983740,0.21359094,103070.0,103060.0,0.02202225]
[1747338983961,0.53738034,103070.0,103060.0,0.01246298]
[1747338984402,0.98923059,103070.0,103060.0,0.01246298]
[1747338984603,1.30795441,103070.0,103060.0,0.01246298]
[1747338985125,1.30795441,103070.0,103060.0,0.01046298]
[1747338985335,1.32995441,103070.0,103060.0,0.00946298]
[1747338985748,1.33195441,103070.0,103060.0,0.00946298]
[1747338986043,1.32795441,103070.0,103060.0,0.00946298]
[1747338986243,1.33295441,103070.0,103060.0,0.00946298]
[1747338987243,1.33795441,103070.0,103060.0,0.00946298]
[1747338987478,1.26000829,103070.0,103060.0,0.00946298]
[1747338987976,1.01923059,103070.0,103060.0,0.00946298]
[1747338988136,1.35731769,103070.0,103060.0,0.00946298]
[1747338988473,1.26000829,103070.0,103060.0,0.00946298]
[1747338991410,6.31000829,103070.0,103060.0,0.00946298]
[1747338992705,6.30000829,103070.0,103060.0,0.00946298]
[1747338993085,1.09712119,103070.0,103060.0,0.00946298]
[1747338993286,1.43520829,103070.0,103060.0,0.00946298]
[1747338994250,1.45369681,103070.0,103060.0,0.00946298]
[1747338994670,0.70684119,103070.0,103060.0,0.00946298]
[1747338994838,1.10712119,103070.0,103060.0,0.00946298]
[1747338995037,1.09712119,103070.0,103060.0,0.00946298]
[1747338996608,0.70684119,103070.0,103060.0,0.00946298]
[1747338996813,1.09712119,103070.0,103060.0,0.00946298]
[1747338997049,1.19443059,103070.0,103060.0,0.00946298]
[1747338998168,0.41820974,103070.0,103060.0,0.00946298]
[1747338998371,0.41871094,103070.0,103060.0,0.36335008]
[1747338998573,0.41871094,103070.0,103060.0,0.04166298]
[1747338998948,0.22359094,103070.0,103060.0,0.57381179]
[1747338999156,0.41871094,103070.0,103060.0,0.37975008]
[1747338999559,0.41871094,103070.0,103060.0,0.58351487]
[1747338999763,0.40400908,103070.0,103060.0,0.38945316]
[1747338999965,0.40700908,103070.0,103060.0,0.38945316]
[1747339000299,0.21188908,103070.0,103060.0,0.37975008]
[1747339000520,0.20888908,103070.0,103060.0,0.37975008]
[1747339000698,0.20388908,103070.0,103060.0,0.37975008]
[1747339000854,0.20688908,103070.0,103060.0,0.37975008]
[1747339001056,0.20388908,103070.0,103060.0,0.37975008]
[1747339001260,0.01954739,103070.0,103060.0,0.6029199]
[1747339001466,0.02924934,103070.0,103060.0,0.6029199]
[1747339001660,0.03895139,103070.0,103060.0,0.6029199]
[1747339002119,0.01954758,103070.0,103060.0,0.6029199]
[1747339002316,0.23299418,103070.0,103060.0,0.6029199]
[1747339002515,0.0389513,103070.0,103060.0,0.6029199]
[1747339002957,0.0195473,103070.0,103060.0,0.6029199]
[1747339003088,0.02924916,103070.0,103060.0,0.6029199]
[1747339003301,0.03895111,103070.0,103060.0,0.6029199]
[1747339003518,0.03895111,103070.0,103060.0,0.6049199]
[1747339004089,0.03895111,103070.0,103060.0,0.6059199]
[1747339004376,0.04865316,103070.0,103060.0,0.6059199]
[1747339005322,0.03895111,103070.0,103060.0,0.6059199]
[1747339006592,0.00014415,103070.0,103060.0,0.7032293]
[1747339007202,0.00014415,103070.0,103060.0,1.0432293]
[1747339009271,0.00014415,103070.0,103060.0,1.2383093]
[1747339009874,0.00014415,103070.0,103060.0,1.6574293]
[1747339010081,0.00014415,103070.0,103060.0,1.9965164]
[1747339010325,0.00014415,103070.0,103060.0,1.9935164]
[1747339010682,0.00014415,103070.0,103060.0,2.0025164]
[1747339011492,0.00014415,103070.0,103060.0,2.01705725]
[1747339011722,0.07794612,103110.0,103100.0,0.25528324]
[1747339012097,0.11673747,103110.0,103100.0,0.59337034]
[1747339012210,0.12643575,103110.0,103100.0,0.59337034]
[1747339012635,0.3204042,103110.0,103100.0,0.59337034]
[1747339013059,0.32054827,103110.0,103100.0,0.59337034]
[1747339013216,0.32154827,103110.0,103100.0,0.59337034]
[1747339013831,0.31185055,103110.0,103100.0,0.59337053]
[1747339015082,0.23390443,103110.0,103100.0,0.59337053]
[1747339015756,0.23390443,103110.0,103100.0,0.60306919]
[1747339016309,0.23390443,103110.0,103100.0,0.59337053]
[1747339016711,0.23390443,103110.0,103100.0,0.60306928]
[1747339016909,0.02054017,103110.0,103100.0,0.61276794]
[1747339017089,0.00114407,103110.0,103100.0,1.04816444]
[1747339017292,0.00114407,103110.0,103100.0,1.38816444]
[1747339017926,0.00114407,103110.0,103100.0,1.58316444]
[1747339018130,0.00014407,103110.0,103100.0,2.00216444]
[1747339018507,0.00014407,103110.0,103100.0,2.00316444]
[1747339018869,0.00014407,103110.0,103100.0,2.01770529]
[1747339019298,0.00014407,103110.0,103100.0,2.02070529]
[1747339019879,0.00014407,103110.0,103100.0,2.01970529]
[1747339020061,0.00014407,103110.0,103100.0,2.02270529]
[1747339020264,0.00014407,103110.0,103100.0,2.01970529]
[1747339020486,0.08764092,103140.0,103130.0,0.25411835]
[1747339020725,0.08764092,103140.0,103130.0,1.22256195]
[1747339020726,0.08764083,103140.0,103130.0,1.22256195]
[1747339020931,0.10703071,103140.0,103130.0,1.22256195]
[1747339021285,0.10703071,103140.0,103130.0,0.88447485]
[1747339021462,0.01938876,103150.0,103140.0,0.22299672]
[1747339021680,0.21342499,103150.0,103140.0,0.56728892]
[1747339021906,0.21342499,103150.0,103140.0,0.576984]
[1747339022341,0.00983781,103150.0,103140.0,0.939966]
[1747339022558,0.01953195,103150.0,103140.0,0.939966]
[1747339023495,0.02922638,103150.0,103140.0,0.939966]
[1747339024187,0.01953195,103150.0,103140.0,0.939966]
[1747339024385,0.01953195,103150.0,103140.0,0.940966]
[1747339024739,0.00983781,103150.0,103140.0,0.940966]
[1747339025137,0.02922638,103150.0,103140.0,0.940966]
[1747339025817,0.01953195,103150.0,103140.0,0.940966]
[1747339026525,0.02922638,103150.0,103140.0,0.940966]
[1747339027697,0.01953195,103150.0,103140.0,0.940966]
[1747339027901,0.02922638,103150.0,103140.0,0.940966]
[1747339029055,0.01953195,103150.0,103140.0,0.940966]
[1747339029296,0.01953195,103150.0,103140.0,0.2647918]
[1747339029498,0.23281309,103150.0,103140.0,0.2647918]
[1747339029703,0.23281309,103150.0,103140.0,0.940966]
[1747339030077,0.02922619,103150.0,103140.0,0.940966]
[1747339030302,0.00014385,103150.0,103140.0,1.0388754]
[1747339030526,0.00014385,103150.0,103140.0,1.3788754]
[1747339032287,0.00014385,103150.0,103140.0,1.5747154]
[1747339032738,0.00014385,103150.0,103140.0,1.5757154]
[1747339033513,0.00014385,103150.0,103140.0,1.9945154]
[1747339034343,0.00014385,103150.0,103140.0,2.00905625]
[1747339034728,0.00014385,103150.0,103140.0,2.02345995]
[1747339034955,0.00014385,103150.0,103140.0,2.02245995]
[1747339035358,0.00014385,103150.0,103140.0,2.02345995]
[1747339035722,0.00014385,103150.0,103140.0,2.02545995]
[1747339041630,0.10323754,103180.0,103160.0,0.21866661]
[1747339041828,0.10323726,103180.0,103170.0,0.90104443]
[1747339042030,0.0973283,103180.0,103170.0,0.99641548]
[1747339042549,0.10701972,103180.0,103170.0,0.99641548]
[1747339042741,0.12261972,103180.0,103170.0,0.65832838]
[1747339042984,0.13231133,103180.0,103170.0,0.65832838]
[1747339043186,0.34244734,103180.0,103170.0,0.65832838]
[1747339043399,0.34244734,103180.0,103170.0,0.6486363]
[1747339043400,0.35213904,103180.0,103170.0,0.6486363]
[1747339043565,0.34244809,103180.0,103170.0,0.85312857]
[1747339043717,0.24820197,103180.0,103170.0,0.86282074]
[1747339044403,0.26370197,103180.0,103170.0,0.86282074]
[1747339044609,0.04467426,103180.0,103170.0,0.87251282]
[1747339044815,0.00969095,103180.0,103170.0,1.22609992]
[1747339044990,0.27177748,103190.0,103180.0,0.20352771]
[1747339045225,0.26223091,103190.0,103180.0,0.55130642]
[1747339045374,0.25254024,103190.0,103180.0,0.56094124]
[1747339045575,0.24284948,103190.0,103180.0,0.56094124]
[1747339045781,0.23435191,103190.0,103180.0,0.34772192]
[1747339045966,0.22466105,103190.0,103180.0,0.34772192]
[1747339046390,0.22466105,103190.0,103180.0,0.54155793]
[1747339046806,0.22466105,103190.0,103180.0,0.55124973]
[1747339046967,0.22466105,103190.0,103180.0,0.34772192]
[1747339047164,0.22466105,103190.0,103180.0,0.54155793]
[1747339047368,0.22466105,103190.0,103180.0,0.55124973]
[1747339048013,0.22466105,103190.0,103180.0,0.34772192]
[1747339048213,0.22466105,103190.0,103180.0,0.54155793]
[1747339048418,0.22466105,103190.0,103180.0,0.55124973]
[1747339048623,0.22466105,103190.0,103180.0,0.56094143]
[1747339048938,0.23285795,103190.0,103180.0,0.75570143]
[1747339049095,0.0429214,103190.0,103180.0,0.77508399]
[1747339049319,0.00834072,103190.0,103180.0,0.87239339]
[1747339049521,0.02772093,103190.0,103180.0,0.88789339]
[1747339049790,0.00983383,103190.0,103180.0,0.88789339]
[1747339049909,0.00014382,103190.0,103180.0,0.90399339]
[1747339050540,0.00014382,103190.0,103180.0,1.24399339]
[1747339052434,0.00014382,103190.0,103180.0,2.00072049]
[1747339055003,0.00014382,103190.0,103180.0,1.66263339]
[1747339055358,0.00014382,103190.0,103180.0,1.43627339]
[1747339055824,0.00014382,103190.0,103180.0,1.84089339]
[1747339056027,0.00014382,103190.0,103180.0,1.85589339]
[1747339056370,0.00014382,103190.0,103180.0,2.19398049]
[1747339057382,0.00014382,103190.0,103180.0,1.85589339]
[1747339057739,0.04158738,103220.0,103210.0,0.22284547]
[1747339057935,0.0323793,103220.0,103210.0,0.75565257]
[1747339058057,0.0166793,103220.0,103210.0,0.75565257]
[1747339059721,0.0166793,103220.0,103210.0,0.85296197]
[1747339061037,0.0004793,103220.0,103210.0,0.85296197]
[1747339061436,0.0327793,103220.0,103210.0,0.85296197]
[1747339061636,0.0424665,103220.0,103210.0,0.41736547]
[1747339061857,0.0424665,103220.0,103210.0,0.75545257]
[1747339062052,0.05215379,103220.0,103210.0,0.75545257]
[1747339062269,0.06184117,103220.0,103210.0,0.75545257]
[1747339063396,0.0327793,103220.0,103210.0,0.75545257]
[1747339063984,0.0163793,103220.0,103210.0,0.85376197]
[1747339064184,0.0004793,103220.0,103210.0,0.85376197]
[1747339066499,0.0157793,103220.0,103210.0,0.85376197]
[1747339067469,0.02546659,103220.0,103210.0,0.85376197]
[1747339067672,0.02546659,103220.0,103210.0,0.65924197]
[1747339067872,0.04066659,103220.0,103210.0,0.85376197]
[1747339069616,0.02546659,103220.0,103210.0,0.85376197]
[1747339069842,0.0254665,103220.0,103210.0,0.85376197]
[1747339069978,0.0157793,103220.0,103210.0,0.85376197]
[1747339070183,0.0254665,103220.0,103210.0,0.85376197]
[1747339072811,0.0101665,103220.0,103210.0,0.85376197]
[1747339073007,0.0004793,103220.0,103210.0,0.85376197]
[1747339073210,0.0101665,103220.0,103210.0,0.85376197]
[1747339073353,0.0004793,103220.0,103210.0,0.85376197]
[1747339073552,0.0101665,103220.0,103210.0,0.85376197]
[1747339073790,0.0004793,103220.0,103210.0,0.85376197]
[1747339073987,0.0004793,103220.0,103210.0,1.54754907]
[1747339074175,0.0004793,103220.0,103210.0,1.22566197]
[1747339075034,0.0004793,103220.0,103210.0,1.56374907]
[1747339075958,0.0004793,103220.0,103210.0,1.22566197]
[1747339076157,0.0004793,103220.0,103210.0,1.19376197]
[1747339076376,0.0169793,103220.0,103210.0,1.19376197]
[1747339076577,0.04236659,103220.0,103210.0,0.99924197]
[1747339076773,0.04236659,103220.0,103210.0,1.19372197]
[1747339077158,0.0004793,103220.0,103210.0,1.03064197]
[1747339077363,0.0004793,103220.0,103210.0,1.56320907]
[1747339077559,0.0004793,103220.0,103210.0,1.19372197]
[1747339077805,0.0169793,103220.0,103210.0,1.19372197]
[1747339078013,0.0169793,103220.0,103210.0,0.99924197]
[1747339078285,0.0169793,103220.0,103210.0,1.19372197]
[1747339078675,0.05155434,103220.0,103210.0,1.19372197]
[1747339078875,0.26469085,103220.0,103210.0,0.99924216]
[1747339079047,0.25500347,103220.0,103210.0,0.55224425]
[1747339079247,0.25500347,103220.0,103210.0,0.55224435]
[1747339079450,0.25500347,103220.0,103210.0,0.56193295]
[1747339079656,0.06124249,103220.0,103210.0,0.58130988]
[1747339079855,0.05155454,103220.0,103210.0,0.58130932]
[1747339080926,0.06124164,103220.0,103210.0,0.58130932]
[1747339081269,0.0418665,103220.0,103210.0,0.58130932]
[1747339081459,0.05155398,103220.0,103210.0,0.58130932]
[1747339081657,0.0169793,103220.0,103210.0,0.67861872]
[1747339081841,0.0004793,103220.0,103210.0,0.69391872]
[1747339082202,0.0004793,103220.0,103210.0,0.67861872]
[1747339085134,0.03595434,103220.0,103210.0,0.3308433]
[1747339085336,0.04276668,103220.0,103210.0,0.67861872]
[1747339085468,0.05245416,103220.0,103210.0,0.67861872]
[1747339085669,0.04276668,103220.0,103210.0,0.87309872]
[1747339085886,0.04276659,103220.0,103210.0,0.87309872]
[1747339086790,0.05245397,103220.0,103210.0,0.87309872]
[1747339087322,0.0330793,103220.0,103210.0,0.87309872]
[1747339087489,0.0165793,103220.0,103210.0,0.87309872]
[1747339087701,0.0004793,103220.0,103210.0,0.87309872]
[1747339087916,0.0004793,103220.0,103210.0,0.88919872]
[1747339088244,0.0004793,103220.0,103210.0,0.87309872]
[1747339088642,0.0318793,103220.0,103210.0,0.87309872]
[1747339089001,0.0318793,103220.0,103210.0,0.67861872]
[1747339089209,0.05125398,103220.0,103210.0,0.87309872]
[1747339089624,0.05125388,103220.0,103210.0,0.87309872]
[1747339089797,0.06094136,103220.0,103210.0,0.87309872]
[1747339091988,0.05125388,103220.0,103210.0,0.87309872]
[1747339093135,0.03565388,103220.0,103210.0,0.87309872]
[1747339094006,0.0259665,103220.0,103210.0,0.87309872]
[1747339094305,0.0004793,103220.0,103210.0,0.87309872]
[1747339095500,0.0004793,103220.0,103210.0,0.88869872]
[1747339096039,0.0004793,103220.0,103210.0,0.87309872]
[1747339096338,0.0253665,103220.0,103210.0,0.87309872]
[1747339096549,0.0156793,103220.0,103210.0,0.87309872]
[1747339097458,0.0004793,103220.0,103210.0,0.87309872]
[1747339097892,0.0101665,103220.0,103210.0,0.87309872]
[1747339098098,0.0004793,103220.0,103210.0,0.87309872]
[1747339099547,0.0004793,103220.0,103210.0,0.88949872]
[1747339102362,0.0004793,103220.0,103210.0,0.87309872]
[1747339103608,0.0004793,103220.0,103210.0,0.88919872]
[1747339104783,0.0004793,103220.0,103210.0,0.90439872]
[1747339105141,0.0004793,103220.0,103210.0,0.88919872]
[1747339106678,0.0252665,103220.0,103210.0,0.87309872]
[1747339106886,0.06044136,103220.0,103210.0,0.87309872]
[1747339107083,0.06044127,103220.0,103210.0,0.87277872]
[1747339107288,0.05075379,103220.0,103210.0,0.87277872]
[1747339107722,0.06044117,103220.0,103210.0,0.87277872]
[1747339108106,0.07012874,103220.0,103210.0,0.87277872]
[1747339108322,0.06044117,103220.0,103210.0,0.87277872]
[1747339108525,0.07012874,103220.0,103210.0,0.87277872]
[1747339109759,0.06044117,103220.0,103210.0,0.87277872]
[1747339110316,0.06044117,103220.0,103210.0,0.67861872]
[1747339110513,0.01985379,103220.0,103210.0,0.87277872]
[1747339110646,0.01985379,103220.0,103210.0,0.67861872]
[1747339110849,0.01985379,103220.0,103210.0,0.87277872]
[1747339111273,0.03545379,103220.0,103210.0,0.87277872]
[1747339111492,0.0004793,103220.0,103210.0,0.88927872]
[1747339113163,0.0004793,103220.0,103210.0,0.87277872]
[1747339113582,0.0004793,103220.0,103210.0,0.88797872]
[1747339114254,0.0004793,103220.0,103210.0,0.87277872]
[1747339114893,0.01016659,103220.0,103210.0,0.87277872]
[1747339115151,0.0155793,103220.0,103210.0,0.87277872]
[1747339115347,0.0252665,103220.0,103210.0,0.87277872]
[1747339116133,0.03495398,103220.0,103210.0,0.87277872]
[1747339116496,0.03495388,103220.0,103210.0,0.87277872]
[1747339116918,0.03495379,103220.0,103210.0,1.67277872]
[1747339118912,0.05125379,103220.0,103210.0,1.67277872]
[1747339119225,0.06094117,103220.0,103210.0,1.67277872]
[1747339121609,0.03495379,103220.0,103210.0,1.67277872]
[1747339122033,0.0004793,103220.0,103210.0,2.38246582]
[1747339122181,0.0251665,103220.0,103210.0,2.01277872]
[1747339122707,0.05005379,103220.0,103210.0,2.01277872]
[1747339124383,0.04036659,103220.0,103210.0,2.01277872]
[1747339124740,0.0154793,103220.0,103210.0,2.01277872]
[1747339125314,0.0154793,103220.0,103210.0,2.117976]
[1747339125929,0.02516668,103220.0,103210.0,2.117976]
[1747339126142,0.02516659,103220.0,103210.0,2.117976]
[1747339127014,0.03485407,103220.0,103210.0,2.117976]
[1747339127215,0.02516659,103220.0,103210.0,2.117976]
[1747339127436,0.02516659,103220.0,103210.0,1.89633381]
[1747339128227,0.03485416,103220.0,103210.0,2.117976]
[1747339128431,0.03485407,103220.0,103210.0,1.89633381]
[1747339128590,0.02516659,103220.0,103210.0,1.89633381]
[1747339128792,0.02516659,103220.0,103210.0,1.70217381]
[1747339129064,0.02516659,103220.0,103210.0,1.89597381]
[1747339130153,0.03485397,103220.0,103210.0,1.89597381]
[1747339130669,0.03485397,103220.0,103210.0,1.67433162]
[1747339130872,0.05035397,103220.0,103210.0,1.43928748]
[1747339131139,0.05422939,103220.0,103210.0,1.43928748]
[1747339131320,0.26349028,103220.0,103210.0,1.42959916]
[1747339131675,0.26349028,103220.0,103210.0,1.02264219]
[1747339131883,0.24411561,103220.0,103210.0,0.801]
[1747339132083,0.43783561,103220.0,103210.0,0.801]
[1747339135188,0.53514501,103220.0,103210.0,0.801]
[1747339140222,0.62257494,103220.0,103210.0,0.801]
[1747339140393,0.54968586,103220.0,103210.0,0.801]
[1747339142213,0.24511561,103220.0,103210.0,0.801]
[1747339142431,0.34242501,103220.0,103210.0,0.801]
[1747339142614,0.53602501,103220.0,103210.0,0.801]
[1747339144823,1.17965887,103220.0,103210.0,0.801]
[1747339145031,1.51965887,103220.0,103210.0,0.801]
[1747339145250,1.08440586,103220.0,103210.0,0.801]
[1747339145498,0.69696586,103220.0,103210.0,0.801]
[1747339145672,1.08440586,103220.0,103210.0,0.801]
[1747339146575,0.69696586,103220.0,103210.0,0.801]
[1747339146750,1.08436586,103220.0,103210.0,0.801]
[1747339147329,0.69696586,103220.0,103210.0,0.801]
[1747339147688,1.08436586,103220.0,103210.0,0.801]
[1747339148724,1.51961887,103220.0,103210.0,0.801]
[1747339149610,6.57961887,103220.0,103210.0,0.79261]
[1747339149854,6.93904902,103220.0,103210.0,0.76041]
[1747339150101,6.91194902,103220.0,103210.0,0.55873011]
[1747339150363,6.60310241,103220.0,103210.0,0.55873011]
[1747339150585,6.57261587,103220.0,103210.0,0.55873011]
[1747339151016,6.57361587,103220.0,103210.0,0.55873011]
[1747339151466,6.57361587,103220.0,103210.0,0.55973011]
[1747339151688,6.91155948,103220.0,103210.0,0.55973011]
[1747339151909,0.21326028,103160.0,103150.0,0.10984612]
[1747339152148,0.40678028,103160.0,103150.0,0.3037385]
[1747339152619,0.49439648,103160.0,103150.0,0.0319]
[1747339152856,0.21330163,103140.0,103130.0,0.28157251]
[1747339153076,0.20321396,103150.0,103140.0,0.22299672]
[1747339153316,0.20321396,103150.0,103140.0,0.58284543]
[1747339153317,0.42618915,103150.0,103140.0,0.58284543]
[1747339153534,0.4261898,103150.0,103140.0,0.25459728]
[1747339153747,0.4261898,103150.0,103140.0,0.26429246]
[1747339154000,0.41649575,103150.0,103140.0,0.26429246]
[1747339154217,0.40680142,103150.0,103140.0,0.23520664]
[1747339154434,0.40680142,103150.0,103140.0,0.24490201]
[1747339154651,0.40680142,103150.0,103140.0,0.25459728]
[1747339154872,0.38739359,103160.0,103150.0,0.2341869]
[1747339155072,0.19387359,103160.0,103150.0,0.2341869]
[1747339155284,0.24226876,103180.0,103160.0,0.0322]
[1747339155496,0.24226876,103180.0,103170.0,0.37014361]
[1747339155497,0.38738876,103180.0,103170.0,0.37014361]
[1747339155701,0.38738876,103180.0,103170.0,0.0322]
[1747339156291,0.19386876,103180.0,103170.0,0.57369105]
[1747339156762,0.19386876,103180.0,103170.0,0.70808722]
[1747339157029,0.19386876,103180.0,103170.0,0.71787782]
[1747339157582,0.19386876,103180.0,103170.0,0.72087782]
[1747339157784,0.19486876,103180.0,103170.0,0.72587782]
[1747339158589,0.19486876,103180.0,103170.0,0.0499906]
[1747339158817,0.19486876,103180.0,103170.0,0.38793421]
[1747339159943,0.19486876,103180.0,103170.0,0.939118]
[1747339160288,0.19486876,103180.0,103170.0,0.72587782]
[1747339161625,0.19486876,103180.0,103170.0,0.0499906]
[1747339161834,0.19486876,103180.0,103170.0,0.72587782]
[1747339162344,0.19486876,103180.0,103170.0,0.0499906]
[1747339162543,0.19486876,103180.0,103170.0,0.91973262]
[1747339162748,0.19486876,103180.0,103170.0,0.72587782]
[1747339163726,0.19486876,103180.0,103170.0,0.38793421]
[1747339165166,0.38834876,103180.0,103170.0,0.37828743]
[1747339165399,0.38834876,103180.0,103170.0,0.72123104]
[1747339166020,0.19486876,103180.0,103170.0,0.72123104]
[1747339166223,0.38834876,103180.0,103170.0,0.72123104]
[1747339167663,0.38834876,103180.0,103170.0,0.38328743]
[1747339167838,0.35039935,103180.0,103170.0,0.01314382]
[1747339168039,1.0919002,103180.0,103170.0,0.01314382]
[1747339169203,1.03367901,103180.0,103170.0,0.01314382]
[1747339169984,0.64671901,103180.0,103170.0,0.01314382]
[1747339170447,1.03371901,103180.0,103170.0,0.01314382]
[1747339171990,0.64671901,103180.0,103170.0,0.01314382]
[1747339172194,1.03371901,103180.0,103170.0,0.01314382]
[1747339172398,1.09288723,103180.0,103170.0,0.01314382]
[1747339172843,1.03371901,103180.0,103170.0,0.01314382]
[1747339173251,0.64671901,103180.0,103170.0,0.01314382]
[1747339173457,1.03367901,103180.0,103170.0,0.01314382]
[1747339174196,0.64671901,103180.0,103170.0,0.01314382]
[1747339174399,0.64671901,103180.0,103170.0,0.01344382]
[1747339174806,1.03367901,103180.0,103170.0,0.01344382]
[1747339175222,0.64671901,103180.0,103170.0,0.01344382]
[1747339175463,1.03367901,103180.0,103170.0,0.01344382]
[1747339177096,1.13098841,103180.0,103170.0,0.01344382]
[1747339177291,6.53893202,103180.0,103170.0,0.01344382]
[1747339177498,6.56803702,103180.0,103170.0,0.01344382]
[1747339178125,6.56803702,103180.0,103170.0,0.01044382]
[1747339178331,6.56703702,103180.0,103170.0,0.00544382]
[1747339178539,6.56703702,103180.0,103170.0,0.00744382]
[1747339178749,6.56703702,103180.0,103170.0,0.00544382]
[1747339179160,6.56703702,103180.0,103170.0,0.00644382]
[1747339179367,6.12178401,103180.0,103170.0,0.00644382]
[1747339179578,6.13178401,103180.0,103170.0,0.00644382]
[1747339179781,6.12178401,103180.0,103170.0,0.00644382]
[1747339179992,6.13178401,103180.0,103170.0,0.00644382]
[1747339180419,6.46972762,103180.0,103170.0,0.00644382]
[1747339180627,6.55903702,103180.0,103170.0,0.00644382]
[1747339180833,6.56903702,103180.0,103170.0,0.00644382]
[1747339181037,6.18207702,103180.0,103170.0,0.00644382]
[1747339181214,6.55903702,103180.0,103170.0,0.00644382]
[1747339181445,6.17207702,103180.0,103170.0,0.00644382]
[1747339181645,0.67682401,103180.0,103170.0,0.00644382]